fUSD/lending_fUSD_20250525
["ID","MTS","AMOUNT","RATE_DAILY","PERIOD"]
[362321395,1748191535268,-150.83,0.0001999,2]
[362321396,1748191535295,-150.83,0.0001999,2]
[362321397,1748191535322,-150.83,0.0001999,2]
[362321398,1748191535348,-150.83,0.0001999,2]
[362321399,1748191535376,-150.83,0.0001999,2]
[362321400,1748191535408,-150.83,0.0001999,2]
[362321401,1748191535441,-150.83,0.0001999,2]
[362321402,1748191535470,-150.83,0.0001999,2]
[362321403,1748191535498,-150.83,0.0001999,2]
[362321404,1748191535526,-175.82065945,0.0001999,2]
[362321405,1748191535555,-150.83,0.0001999,2]
[362321406,1748191535583,-150.83,0.0001999,2]
[362321407,1748191535611,-150.83,0.0001999,2]
[362321408,1748191535639,-500.0,0.00019992,2]
[362321409,1748191535733,-500.0,0.00019992,2]
[362321410,1748191535767,-500.0,0.00019992,2]
[362321411,1748191535796,-500.0,0.00019992,2]
[362321412,1748191535825,-500.0,0.00019992,2]
[362321413,1748191536157,-408.18547326,0.00019992,2]
[362321414,1748191536188,-388.97000128,0.00019993,2]
[362321415,1748191536215,-420.0,0.00019993,2]
[362321416,1748191536245,-420.0,0.00019993,2]
[362321417,1748191536273,-420.0,0.00019993,2]
[362321418,1748191536303,-420.0,0.00019993,2]
[362321419,1748191536332,-420.0,0.00019993,2]
[362321420,1748191536358,-420.0,0.00019993,2]
[362321421,1748191536534,-420.0,0.00019993,2]
[362321422,1748191536562,-420.0,0.00019993,2]
[362321423,1748191536588,-420.0,0.00019993,2]
[362321424,1748191536614,-420.0,0.00019993,2]
[362321425,1748191536639,-423.29349983,0.00019993,2]
[362321426,1748191536667,-420.0,0.00019993,2]
[362321427,1748191536693,-433.79441793,0.00019993,2]
[362321428,1748191536720,-420.0,0.00019993,2]
[362321429,1748191536747,-427.68968085,0.00019993,2]
[362321430,1748191536774,-443.15165052,0.00019993,2]
[362321431,1748191536805,-432.14427336,0.00019993,2]
[362321432,1748191536837,-424.18032587,0.00019993,2]
[362321433,1748191536866,-266.19115063,0.00019993,2]
[362321434,1748191537009,-432.56045042,0.00019993,2]
[362321435,1748191537035,-420.0,0.00019993,2]
[362321436,1748191537061,-420.0,0.00019993,2]
[362321437,1748191537087,-433.44202843,0.00019993,2]
[362321438,1748191537113,-420.0,0.00019993,2]
[362321439,1748191537139,-420.0,0.00019993,2]
[362321440,1748191537165,-473.14611456,0.00019993,2]
[362321441,1748191537193,-420.0,0.00019993,2]
[362321442,1748191537220,-438.08625338,0.00019993,2]
[362321443,1748191537247,-420.0,0.00019993,2]
[362321444,1748191537274,-420.0,0.00019993,2]
[362321445,1748191537300,-420.0,0.00019993,2]
[362321446,1748191537327,-223.82162082,0.00019993,2]
[362321447,1748191537390,-317.10226478,0.00019993,2]
[362321448,1748191537417,-443.07591121,0.00019993,2]
[362321449,1748191537445,-434.67330594,0.00019993,2]
[362321450,1748191537474,-424.52585188,0.00019993,2]
[362321451,1748191537500,-420.0,0.00019993,2]
[362321452,1748191537526,-420.0,0.00019993,2]
[362321453,1748191537552,-420.0,0.00019993,2]
[362321454,1748191537579,-431.29742829,0.00019993,2]
[362321455,1748191537604,-420.0,0.00019993,2]
[362321456,1748191537630,-420.0,0.00019993,2]
[362321457,1748191537656,-420.0,0.00019993,2]
[362321458,1748191537682,-423.11206191,0.00019993,2]
[362321459,1748191537708,-426.36146594,0.00019993,2]
[362321460,1748191537866,-366.96368249,0.00019993,2]
[362321461,1748191537892,-420.0,0.00019993,2]
[362321462,1748191537919,-316.99385029,0.00019993,2]
[362321463,1748191537948,-425.87187666,0.00019994,2]
[362321464,1748191537978,-173.03375349,0.00019994,2]
[362321465,1748191538008,-420.0,0.00019994,2]
[362321466,1748191538036,-316.93835851,0.00019994,2]
[362321467,1748191538064,-429.94031214,0.00019994,2]
[362321468,1748191538103,-527.27285125,0.00019994,2]
[362321469,1748191538140,-420.0,0.00019994,2]
[362321470,1748191538175,-444.47453624,0.00019994,2]
[362321471,1748191538209,-420.0,0.00019994,2]
[362321472,1748191538245,-259.21,0.00019994,2]
[362321473,1748191538279,-195.04,0.00019994,2]
[362321474,1748191538311,-338.50509272,0.00019994,2]
[362321475,1748191538524,-90.72657242,0.00019994,2]
[362321476,1748191538558,-439.38335409,0.00019994,2]
[362321477,1748191538590,-420.0,0.00019994,2]
[362321478,1748191538618,-420.0,0.00019994,2]
[362321479,1748191538650,-420.0,0.00019994,2]
[362321480,1748191538683,-420.0,0.00019994,2]
[362321481,1748191538710,-430.66626646,0.00019994,2]
[362321482,1748191538742,-434.85307406,0.00019994,2]
[362321483,1748191538773,-246.01,0.00019994,2]
[362321484,1748191538804,-420.0,0.00019994,2]
[362321485,1748191538837,-420.0,0.00019994,2]
[362321486,1748191538869,-353.33167967,0.00019994,2]
[362321487,1748191538899,-519.29337194,0.00019994,2]
[362321488,1748191538930,-260.87890683,0.00019994,2]
[362321489,1748191538960,-28.92874906,0.00019994,2]
[362321490,1748191539121,-391.07125094,0.00019994,2]
[362321491,1748191539152,-420.0,0.00019994,2]
[362321492,1748191539183,-420.0,0.00019994,2]
[362321493,1748191539212,-420.0,0.00019994,2]
[362321494,1748191539242,-420.0,0.00019994,2]
[362321495,1748191539273,-469.6264669,0.00019994,2]
[362321496,1748191539303,-420.0,0.00019994,2]
[362321497,1748191539334,-443.31074109,0.00019994,2]
[362321498,1748191539364,-420.0,0.00019994,2]
[362321499,1748191539399,-427.20171401,0.00019994,2]
[362321500,1748191539430,-420.0,0.00019994,2]
[362321501,1748191539463,-420.0,0.00019994,2]
[362321502,1748191539496,-422.74033839,0.00019994,2]
[362321503,1748191539713,-11.31417734,0.00019994,2]
[362321504,1748191539745,-526.80196629,0.00019994,2]
[362321505,1748191539775,-438.78974662,0.00019994,2]
[362321506,1748191539807,-441.37985268,0.00019994,2]
[362321507,1748191539837,-420.0,0.00019994,2]
[362321508,1748191539869,-271.55074809,0.00019994,2]
[362321509,1748191539900,-424.03974855,0.00019994,2]
[362321510,1748191539932,-420.0,0.00019994,2]
[362321511,1748191539964,-420.0,0.00019994,2]
[362321512,1748191539995,-420.0696331,0.00019994,2]
[362321513,1748191540026,-420.0,0.00019994,2]
[362321514,1748191540056,-420.0,0.00019994,2]
[362321515,1748191540086,-420.0,0.00019994,2]
[362321516,1748191540116,-420.0,0.00019994,2]
[362321517,1748191540444,-420.0,0.00019994,2]
[362321518,1748191540488,-438.90785346,0.00019994,2]
[362321519,1748191540515,-420.0,0.00019994,2]
[362321520,1748191540544,-500.0,0.00019994,2]
[362321521,1748191540572,-548.9127791,0.00019994,2]
[362321522,1748191540600,-500.0,0.00019994,2]
[362321523,1748191540627,-500.0,0.00019994,2]
[362321524,1748191540654,-500.0,0.00019994,2]
[362321525,1748191540682,-500.0,0.00019994,2]
[362321526,1748191540708,-420.0,0.00019994,2]
[362321527,1748191540735,-420.0,0.00019994,2]
[362321528,1748191540761,-279.68892706,0.00019994,2]
[362321529,1748191540804,-144.19608076,0.00019994,2]
[362321530,1748191540835,-420.0,0.00019994,2]
[362321531,1748191540864,-420.0,0.00019994,2]
[362321532,1748191540893,-420.0,0.00019994,2]
[362321533,1748191540923,-423.14737729,0.00019994,2]
[362321534,1748191540952,-420.0,0.00019994,2]
[362321535,1748191540980,-420.0,0.00019994,2]
[362321536,1748191541011,-420.0,0.00019994,2]
[362321537,1748191541041,-420.0,0.00019994,2]
[362321538,1748191541069,-420.0,0.00019994,2]
[362321539,1748191541096,-420.0,0.00019994,2]
[362321540,1748191541125,-420.0,0.00019994,2]
[362321541,1748191541155,-423.80058988,0.00019994,2]
[362321542,1748191541185,-236.92710414,0.00019994,2]
[362321543,1748191541226,-183.07289586,0.00019994,2]
[362321544,1748191541253,-420.0,0.00019994,2]
[362321545,1748191541279,-420.0,0.00019994,2]
[362321546,1748191541305,-310.0656755,0.00019994,2]
[362321547,1748191541331,-420.0,0.00019994,2]
[362321548,1748191541359,-420.0,0.00019994,2]
[362321549,1748191541387,-554.54,0.00019994,2]
[362321550,1748191541414,-422.69416206,0.00019994,2]
[362321551,1748191541441,-420.0,0.00019994,2]
[362321552,1748191541470,-420.0,0.00019994,2]
[362321553,1748191541497,-420.0,0.00019994,2]
[362321554,1748191541523,-464.15488693,0.00019994,2]
[362321555,1748191541549,-420.0,0.00019994,2]
[362321556,1748191541576,-156.23099146,0.00019994,2]
[362321557,1748191541738,-137.69797638,0.00019994,2]
[362321558,1748191541764,-420.0,0.00019994,2]
[362321559,1748191541795,-422.34194697,0.00019994,2]
[362321560,1748191541824,-420.0,0.00019994,2]
[362321561,1748191541853,-420.0,0.00019994,2]
[362321562,1748191541880,-420.0,0.00019994,2]
[362321563,1748191541911,-428.68604849,0.00019994,2]
[362321564,1748191541939,-423.08718192,0.00019994,2]
[362321565,1748191541964,-420.0,0.00019994,2]
[362321566,1748191541991,-420.0,0.00019994,2]
[362321567,1748191542017,-420.0,0.00019994,2]
[362321568,1748191542044,-420.0,0.00019994,2]
[362321569,1748191542070,-420.0,0.00019994,2]
[362321570,1748191542097,-235.58889248,0.00019994,2]
[362321571,1748191542329,-184.41110752,0.00019994,2]
[362321572,1748191542355,-420.0,0.00019994,2]
[362321573,1748191542394,-420.0,0.00019994,2]
[362321574,1748191542422,-420.0,0.00019994,2]
[362321575,1748191542452,-420.0,0.00019994,2]
[362321576,1748191542480,-420.0,0.00019994,2]
[362321577,1748191542508,-279.83863064,0.00019994,2]
[362321578,1748191542534,-420.0,0.00019994,2]
[362321579,1748191542561,-420.0,0.00019994,2]
[362321580,1748191542590,-315.03866044,0.00019994,2]
[362321581,1748191542618,-420.0,0.00019994,2]
[362321582,1748191542777,-420.0,0.00019994,2]
[362321583,1748191542805,-420.0,0.00019994,2]
[362321584,1748191542833,-420.0,0.00019994,2]
[362321585,1748191542980,-430.20740224,0.00019994,2]
[362321586,1748191543006,-420.0,0.00019994,2]
[362321587,1748191543029,-420.0,0.00019994,2]
[362321588,1748191543054,-420.38823472,0.00019994,2]
[362321589,1748191543077,-432.81927525,0.00019994,2]
[362321590,1748191543102,-420.0,0.00019994,2]
[362321591,1748191543127,-420.0,0.00019994,2]
[362321592,1748191543152,-420.58508541,0.00019994,2]
[362321593,1748191543181,-429.08537755,0.00019994,2]
[362321594,1748191543207,-420.0,0.00019994,2]
[362321595,1748191543233,-427.22385983,0.00019994,2]
[362321596,1748191543264,-420.0,0.00019994,2]
[362321597,1748191543291,-420.0,0.00019994,2]
[362321598,1748191543479,-420.0,0.00019994,2]
[362321599,1748191543505,-420.0,0.00019994,2]
[362321600,1748191543532,-500.0,0.00019994,2]
[362321601,1748191543559,-420.0,0.00019994,2]
[362321602,1748191543587,-433.00899799,0.00019994,2]
[362321603,1748191543613,-420.0,0.00019994,2]
[362321604,1748191543640,-422.05055486,0.00019994,2]
[362321605,1748191543668,-420.0,0.00019994,2]
[362321606,1748191543695,-394.81737781,0.00019994,2]
[362321607,1748191543723,-420.0,0.00019994,2]
[362321608,1748191543750,-420.0,0.00019994,2]
[362321609,1748191543780,-420.0,0.00019994,2]
[362321610,1748191543808,-396.21738539,0.00019994,2]
[362321611,1748191544022,-27.0265679,0.00019994,2]
[362321612,1748191544050,-224.14026986,0.00019994,2]
[362321613,1748191544080,-500.0,0.00019994,2]
[362321614,1748191544108,-420.0,0.00019994,2]
[362321615,1748191544136,-207.58432433,0.00019994,2]
[362321616,1748191544164,-500.0,0.00019994,2]
[362321617,1748191544193,-500.0,0.00019994,2]
[362321618,1748191544220,-500.0,0.00019994,2]
[362321619,1748191544247,-500.0,0.00019994,2]
[362321620,1748191544275,-420.0,0.00019994,2]
[362321621,1748191544302,-420.0,0.00019994,2]
[362321622,1748191544330,-420.0,0.00019994,2]
[362321623,1748191544357,-420.0,0.00019994,2]
[362321624,1748191544389,-420.0,0.00019994,2]
[362321625,1748191544553,-420.0,0.00019994,2]
[362321626,1748191544581,-420.0,0.00019994,2]
[362321627,1748191544609,-420.0,0.00019994,2]
[362321628,1748191544637,-275.77266004,0.00019994,2]
[362321629,1748191544666,-420.0,0.00019994,2]
[362321630,1748191544693,-420.0,0.00019994,2]
[362321631,1748191544720,-420.0,0.00019994,2]
[362321632,1748191544750,-420.0,0.00019994,2]
[362321633,1748191544776,-420.0,0.00019994,2]
[362321634,1748191544804,-420.0,0.00019994,2]
[362321635,1748191544831,-420.0,0.00019994,2]
[362321636,1748191544858,-420.0,0.00019994,2]
[362321637,1748191544886,-420.0,0.00019994,2]
[362321638,1748191545319,-420.0,0.00019994,2]
[362321639,1748191545346,-420.0,0.00019994,2]
[362321640,1748191545374,-420.0,0.00019994,2]
[362321641,1748191545405,-420.0,0.00019994,2]
[362321642,1748191545435,-420.0,0.00019994,2]
[362321643,1748191545463,-420.0,0.00019994,2]
[362321644,1748191545491,-420.0,0.00019994,2]
[362321645,1748191545517,-420.0,0.00019994,2]
[362321646,1748191545544,-420.0,0.00019994,2]
[362321647,1748191545569,-420.0,0.00019994,2]
[362321648,1748191545596,-420.0,0.00019994,2]
[362321649,1748191545712,-420.0,0.00019994,2]
[362321650,1748191545745,-447.5481521,0.00019994,2]
[362321651,1748191545917,-420.0,0.00019994,2]
[362321652,1748191545947,-420.0,0.00019994,2]
[362321653,1748191545978,-420.0,0.00019994,2]
[362321654,1748191546011,-513.0,0.00019994,2]
[362321655,1748191546043,-420.0,0.00019994,2]
[362321656,1748191546071,-553.64107384,0.00019994,2]
[362321657,1748191546099,-420.0,0.00019994,2]
[362321658,1748191546124,-420.0,0.00019994,2]
[362321659,1748191546151,-420.0,0.00019994,2]
[362321660,1748191546180,-420.0,0.00019994,2]
[362321661,1748191546207,-552.66781943,0.00019994,2]
[362321662,1748191546233,-420.0,0.00019994,2]
[362321663,1748191546327,-420.0,0.00019994,2]
[362321664,1748191546357,-420.0,0.00019994,2]
[362321665,1748191546387,-515.88562566,0.00019994,2]
[362321666,1748191546413,-434.0558562,0.00019994,2]
[362321667,1748191546441,-420.0,0.00019994,2]
[362321668,1748191546469,-420.0,0.00019994,2]
[362321669,1748191546498,-420.0,0.00019994,2]
[362321670,1748191546526,-420.0,0.00019994,2]
[362321671,1748191546552,-422.57305271,0.00019994,2]
[362321672,1748191546578,-238.36248599,0.00019994,2]
[362321673,1748191546606,-420.0,0.00019994,2]
[362321674,1748191546632,-420.0,0.00019994,2]
[362321675,1748191546661,-211.06963193,0.00019994,2]
[362321676,1748191546688,-255.32189502,0.00019994,2]
[362321677,1748191546733,-164.67810498,0.00019994,2]
[362321678,1748191546761,-420.0,0.00019994,2]
[362321679,1748191546787,-420.0,0.00019994,2]
[362321680,1748191546814,-420.0,0.00019994,2]
[362321681,1748191546842,-448.3471975,0.00019994,2]
[362321682,1748191546867,-168.03335773,0.00019994,2]
[362321683,1748191546894,-552.47598728,0.00019994,2]
[362321684,1748191546921,-420.0,0.00019994,2]
[362321685,1748191546947,-420.0,0.00019994,2]
[362321686,1748191546975,-420.0,0.00019994,2]
[362321687,1748191547002,-420.0,0.00019994,2]
[362321688,1748191547028,-420.0,0.00019994,2]
[362321689,1748191547055,-420.0,0.00019994,2]
[362321690,1748191547180,-886.600638,0.00019994,2]
[362321691,1748191547207,-420.0,0.00019994,2]
[362321692,1748191547232,-420.0,0.00019994,2]
[362321693,1748191547259,-467.63336199,0.00019994,2]
[362321694,1748191547288,-420.0,0.00019994,2]
[362321695,1748191547315,-420.0,0.00019994,2]
[362321696,1748191547342,-420.0,0.00019994,2]
[362321697,1748191547371,-420.0,0.00019994,2]
[362321698,1748191547402,-420.0,0.00019994,2]
[362321699,1748191547430,-420.0,0.00019994,2]
[362321700,1748191547458,-420.0,0.00019994,2]
[362321701,1748191547485,-350.74720002,0.00019994,2]
[362321702,1748191547843,-69.25279998,0.00019994,2]
[362321703,1748191547871,-420.0,0.00019994,2]
[362321704,1748191547902,-451.39949907,0.00019994,2]
[362321705,1748191547929,-420.0,0.00019994,2]
[362321706,1748191547958,-420.0,0.00019994,2]
[362321707,1748191547986,-420.0,0.00019994,2]
[362321708,1748191548014,-420.0,0.00019994,2]
[362321709,1748191548042,-420.0,0.00019994,2]
[362321710,1748191548069,-420.0,0.00019994,2]
[362321711,1748191548097,-414.0,0.00019994,2]
[362321712,1748191548125,-649.083279,0.00019994,2]
[362321713,1748191548153,-438.54442079,0.00019994,2]
[362321714,1748191548181,-420.0,0.00019994,2]
[362321715,1748191548384,-420.0,0.00019994,2]
[362321716,1748191548414,-445.4080515,0.00019994,2]
[362321717,1748191548444,-420.0,0.00019994,2]
[362321718,1748191548473,-420.0,0.00019994,2]
[362321719,1748191548502,-420.0,0.00019994,2]
[362321720,1748191548530,-420.0,0.00019994,2]
[362321721,1748191548558,-420.0,0.00019994,2]
[362321722,1748191548587,-420.0,0.00019994,2]
[362321723,1748191548614,-420.0,0.00019994,2]
[362321724,1748191548644,-420.0,0.00019994,2]
[362321725,1748191548675,-420.0,0.00019994,2]
[362321726,1748191548705,-420.0,0.00019994,2]
[362321727,1748191548733,-155.61790181,0.00019994,2]
[362321728,1748191548762,-177.16329338,0.00019994,2]
[362321729,1748191548802,-242.83670662,0.00019994,2]
[362321730,1748191548832,-420.0,0.00019994,2]
[362321731,1748191548859,-190.94628404,0.00019994,2]
[362321732,1748191548886,-424.79653389,0.00019994,2]
[362321733,1748191548915,-420.0,0.00019994,2]
[362321734,1748191548943,-420.0,0.00019994,2]
[362321735,1748191548970,-424.56234548,0.00019994,2]
[362321736,1748191548999,-428.47980553,0.00019994,2]
[362321737,1748191549028,-420.0,0.00019994,2]
[362321738,1748191549056,-420.0,0.00019994,2]
[362321739,1748191549084,-420.0,0.00019994,2]
[362321740,1748191549113,-420.0,0.00019994,2]
[362321741,1748191549140,-542.59335915,0.00019994,2]
[362321742,1748191549171,-230.78513058,0.00019994,2]
[362321743,1748191549426,-189.21486942,0.00019994,2]
[362321744,1748191549453,-420.0,0.00019994,2]
[362321745,1748191549483,-184.83793239,0.00019994,2]
[362321746,1748191549511,-420.0,0.00019994,2]
[362321747,1748191549538,-420.0,0.00019994,2]
[362321748,1748191549565,-420.0,0.00019994,2]
[362321749,1748191549592,-540.46160155,0.00019994,2]
[362321750,1748191549620,-420.0,0.00019994,2]
[362321751,1748191549647,-500.0,0.00019994,2]
[362321752,1748191549675,-441.7250122,0.00019994,2]
[362321753,1748191549704,-420.0,0.00019994,2]
[362321754,1748191549736,-420.0,0.00019994,2]
[362321755,1748191549769,-440.53213156,0.00019994,2]
[362321756,1748191549800,-145.67210576,0.00019994,2]
[362321757,1748191550084,-274.32789424,0.00019994,2]
[362321758,1748191550121,-420.0,0.00019994,2]
[362321759,1748191550152,-420.0,0.00019994,2]
[362321760,1748191550184,-420.0,0.00019994,2]
[362321761,1748191550218,-186.62602644,0.00019994,2]
[362321762,1748191550250,-420.0,0.00019994,2]
[362321763,1748191550283,-434.44528992,0.00019994,2]
[362321764,1748191550313,-420.0,0.00019994,2]
[362321765,1748191550345,-420.0,0.00019994,2]
[362321766,1748191550377,-420.0,0.00019994,2]
[362321767,1748191550413,-420.0,0.00019994,2]
[362321768,1748191550443,-420.0,0.00019994,2]
[362321769,1748191550476,-420.0,0.00019994,2]
[362321770,1748191550506,-420.0,0.00019994,2]
[362321771,1748191551089,-260.37,0.00019025,2]
[362321772,1748191551115,-487.44849483,0.00019994,2]
[362321773,1748191551144,-420.0,0.00019994,2]
[362321774,1748191551171,-429.5926494,0.00019994,2]
[362321775,1748191551201,-420.0,0.00019994,2]
[362321776,1748191551229,-420.0,0.00019994,2]
[362321777,1748191551258,-420.0,0.00019994,2]
[362321778,1748191551286,-423.97634684,0.00019994,2]
[362321779,1748191551312,-420.0,0.00019994,2]
[362321780,1748191551338,-422.83013426,0.00019994,2]
[362321781,1748191551364,-423.58063341,0.00019994,2]
[362321782,1748191551393,-420.0,0.00019994,2]
[362321783,1748191551420,-428.39932387,0.00019994,2]
[362321784,1748191551567,-420.0,0.00019994,2]
[362321785,1748191551594,-420.0,0.00019994,2]
[362321786,1748191551621,-420.0,0.00019994,2]
[362321787,1748191551652,-420.0,0.00019994,2]
[362321788,1748191551682,-420.0,0.00019994,2]
[362321789,1748191551709,-420.0,0.00019994,2]
[362321790,1748191551736,-519.53913246,0.00019994,2]
[362321791,1748191551765,-436.53411395,0.00019994,2]
[362321792,1748191551797,-500.0,0.00019994,2]
[362321793,1748191551830,-420.0,0.00019994,2]
[362321794,1748191551860,-543.47845028,0.00019994,2]
[362321795,1748191551891,-420.0,0.00019994,2]
[362321796,1748191552095,-462.81237151,0.00019994,2]
[362321797,1748191552125,-420.0,0.00019994,2]
[362321798,1748191552156,-420.0,0.00019994,2]
[362321799,1748191552185,-420.0,0.00019994,2]
[362321800,1748191552216,-420.0,0.00019994,2]
[362321801,1748191552247,-420.0,0.00019994,2]
[362321802,1748191552277,-420.0,0.00019994,2]
[362321803,1748191552424,-420.0,0.00019994,2]
[362321804,1748191552454,-420.0,0.00019994,2]
[362321805,1748191552482,-461.57756302,0.00019994,2]
[362321806,1748191552510,-420.0,0.00019994,2]
[362321807,1748191552537,-420.0,0.00019994,2]
[362321808,1748191552564,-370.43533094,0.00019994,2]
[362321809,1748191552766,-49.56466906,0.00019994,2]
[362321810,1748191552793,-420.0,0.00019994,2]
[362321811,1748191552820,-420.0,0.00019994,2]
[362321812,1748191552846,-420.0,0.00019994,2]
[362321813,1748191552872,-420.0,0.00019994,2]
[362321814,1748191552899,-433.01320024,0.00019994,2]
[362321815,1748191552927,-438.63360775,0.00019994,2]
[362321816,1748191552954,-438.78801075,0.00019994,2]
[362321817,1748191552981,-420.0,0.00019994,2]
[362321818,1748191553008,-420.0,0.00019994,2]
[362321819,1748191553035,-426.38839626,0.00019994,2]
[362321820,1748191553062,-423.31263666,0.00019994,2]
[362321821,1748191553089,-420.0,0.00019994,2]
[362321822,1748191553117,-319.81415856,0.00019994,2]
[362321823,1748191553312,-100.18584144,0.00019994,2]
[362321824,1748191553339,-430.33900967,0.00019994,2]
[362321825,1748191553367,-420.0,0.00019994,2]
[362321826,1748191553398,-431.7055007,0.00019994,2]
[362321827,1748191553425,-434.84721071,0.00019994,2]
[362321828,1748191553456,-437.9444823,0.00019994,2]
[362321829,1748191553486,-435.68314988,0.00019994,2]
[362321830,1748191553514,-420.0,0.00019994,2]
[362321831,1748191553542,-420.0,0.00019994,2]
[362321832,1748191553571,-420.0,0.00019994,2]
[362321833,1748191553599,-420.0,0.00019994,2]
[362321834,1748191553626,-420.0,0.00019994,2]
[362321835,1748191553654,-420.0,0.00019994,2]
[362321836,1748191553682,-197.8048106,0.00019994,2]
[362321837,1748191554054,-222.1951894,0.00019994,2]
[362321838,1748191554082,-420.0,0.00019994,2]
[362321839,1748191554110,-429.58986086,0.00019994,2]
[362321840,1748191554137,-432.29479473,0.00019994,2]
[362321841,1748191554164,-420.0,0.00019994,2]
[362321842,1748191554193,-420.0,0.00019994,2]
[362321843,1748191554220,-420.0,0.00019994,2]
[362321844,1748191554247,-420.0,0.00019994,2]
[362321845,1748191554273,-2164.39872892,0.00019995,2]
[362321846,1748191554378,260.37,0.00026159,120]
[362321847,1748191554518,-342.25805218,0.00019995,2]
[362321848,1748191572826,-200.0,0.00019041,2]
[362321849,1748191572835,-155.0,0.000199,2]
[362321850,1748191572844,-19.60646292,0.00019994,2]
[362321851,1748191572858,-400.39353708,0.00019994,2]
[362321852,1748191572867,-19.60646292,0.00019994,2]
[362321853,1748191572881,-400.39353708,0.00019994,2]
[362321854,1748191572890,-19.60646292,0.00019994,2]
[362321855,1748191572903,-400.39353708,0.00019994,2]
[362321856,1748191572913,-19.60646292,0.00019994,2]
[362321857,1748191572927,-412.98353708,0.00019994,2]
[362321858,1748191572936,-7.01646292,0.00019994,2]
[362321859,1748191572950,-418.2341551,0.00019994,2]
[362321860,1748191572959,-1.7658449,0.00019994,2]
[362321861,1748191572972,-420.0,0.00019994,2]
[362321862,1748191572985,-101.55381943,0.00019994,2]
[362321863,1748191572994,-318.44618057,0.00019994,2]
[362321864,1748191573013,-101.55381943,0.00019994,2]
[362321865,1748191573022,-120.64136997,0.00019994,2]
[362321866,1748191573035,-299.35863003,0.00019994,2]
[362321867,1748191573045,-120.64136997,0.00019994,2]
[362321868,1748191573059,-299.35863003,0.00019994,2]
[362321869,1748191573069,-130.23123083,0.00019994,2]
[362321870,1748191573082,-289.76876917,0.00019994,2]
[362321871,1748191573091,-142.52602556,0.00019994,2]
[362321872,1748191573104,-277.47397444,0.00019994,2]
[362321873,1748191573113,-142.52602556,0.00019995,2]
[362321874,1748191573126,-420.0,0.00019995,2]
[362321875,1748191573138,-420.0,0.00019995,2]
[362321876,1748191573151,-420.0,0.00019995,2]
[362321877,1748191573165,-2506.6567811,0.00019995,2]
[362321878,1748191573184,-342.25805218,0.00019995,2]
[362321879,1748191573197,-10354.69909564,0.00019995,2]
[362321880,1748191573215,-11039.2152,0.00019995,2]
[362321881,1748191573234,-612.080135,0.00019894,2]
[362321882,1748191573244,-10427.135065,0.00019995,2]
[362321883,1748191573276,-11039.2152,0.00019995,2]
[362321884,1748191573301,-11039.2152,0.00019995,2]
[362321885,1748191573315,-11039.2152,0.00019995,2]
[362321886,1748191573463,-11039.2152,0.00019995,2]
[362321887,1748191573484,-11039.2152,0.00019995,2]
[362321888,1748191573498,-11039.2152,0.00019995,2]
[362321889,1748191573512,-11039.2152,0.00019995,2]
[362321890,1748191648133,-853.54257909,0.00017107,2]
[362321891,1748191651083,-234.21742091,0.00017107,2]
[362321892,1748191651104,-150.0,0.0001903,7]
[362321893,1748191651124,-1087.76,0.00019371,2]
[362321894,1748191651145,-200.0,0.00019467,2]